fUST/lending_fUST_20250411
["ID","MTS","AMOUNT","RATE_DAILY","PERIOD"]
[357707197,1744361432913,-2731.9,0.00021109,2]
[357707198,1744361432923,-2731.9,0.00021109,2]
[357707199,1744361432937,-2731.9,0.00021109,2]
[357707200,1744361432946,-2731.9,0.00021109,2]
[357707201,1744361432955,-2731.9,0.00021109,2]
[357707202,1744361432965,-2731.9,0.00021109,2]
[357707203,1744361432975,-2731.9,0.00021109,2]
[357707204,1744361432984,-2731.9,0.00021109,2]
[357707205,1744361432994,-2732.0,0.00021109,2]
[357707206,1744361433003,-151.0,0.00021109,2]
[357707207,1744361433013,-285.509887,0.00021109,2]
[357707208,1744361433022,-285.509887,0.00021109,2]
[357707209,1744361433148,-264.78225056,0.0002122,2]
[357707210,1744361433167,-151.67744638,0.0002123,2]
[357707211,1744361433178,-3000.0,0.0002128,2]
[357707212,1744361433188,-151.0,0.0002128,2]
[357707213,1744361433198,-285.509887,0.0002128,2]
[357707214,1744361433208,-285.509887,0.0002128,2]
[357707215,1744361433218,-233.75366059,0.00021287,2]
[357707216,1744361433228,-3000.0,0.0002129,2]
[357707217,1744361433238,-3000.0,0.000213,2]
[357707218,1744361433248,-3000.0,0.0002131,2]
[357707219,1744361433259,-151.0,0.00021314,2]
[357707220,1744361433269,-285.509887,0.00021314,2]
[357707221,1744361433278,-285.509887,0.00021314,2]
[357707222,1744361433288,-151.0,0.00021317,2]
[357707223,1744361433298,-151.0,0.00021317,2]
[357707224,1744361433308,-151.0,0.00021317,2]
[357707225,1744361433318,-301.641229,0.00021317,2]
[357707226,1744361433328,-151.0,0.00021317,2]
[357707227,1744361433339,-151.0,0.00021317,2]
[357707228,1744361433349,-151.0,0.00021317,2]
[357707229,1744361433358,-151.0,0.00021317,2]
[357707230,1744361433368,-151.0,0.00021317,2]
[357707231,1744361433378,-151.0,0.00021317,2]
[357707232,1744361433387,-151.0,0.00021317,2]
[357707233,1744361433397,-151.0,0.00021317,2]
[357707234,1744361433407,-180.469134,0.00021317,2]
[357707235,1744361433416,-267.512016,0.00021317,2]
[357707236,1744361433427,-151.0,0.00021317,2]
[357707237,1744361433437,-151.0,0.00021317,2]
[357707238,1744361433447,-151.0,0.00021317,2]
[357707239,1744361433457,-242.561479,0.00021317,2]
[357707240,1744361433467,-151.0,0.00021317,2]
[357707241,1744361433476,-156.218525,0.00021317,2]
[357707242,1744361433487,-151.0,0.00021317,2]
[357707243,1744361433497,-151.0,0.00021317,2]
[357707244,1744361433506,-151.0,0.00021317,2]
[357707245,1744361433516,-151.0,0.00021317,2]
[357707246,1744361433526,-207.096008,0.00021317,2]
[357707247,1744361433536,-1528.22924,0.00021317,2]
[357707248,1744361433546,-1528.22924,0.00021317,2]
[357707249,1744361433557,-1528.22924,0.00021317,2]
[357707250,1744361433567,-151.0,0.00021317,2]
[357707251,1744361433576,-154.047854,0.00021317,2]
[357707252,1744361433586,-1528.22924,0.00021317,2]
[357707253,1744361433597,-1528.22924,0.00021317,2]
[357707254,1744361433607,-1266.14233202,0.00021317,2]
[357707255,1744361433620,-262.08690798,0.00021317,2]
[357707256,1744361433630,-151.0,0.00021317,2]
[357707257,1744361433640,-151.0,0.00021317,2]
[357707258,1744361433649,-151.0,0.00021317,2]
[357707259,1744361433659,-151.0,0.00021317,2]
[357707260,1744361433670,-151.0,0.00021317,2]
[357707261,1744361433681,-151.0,0.00021317,2]
[357707262,1744361433691,-151.0,0.00021317,2]
[357707263,1744361433701,-151.848985,0.00021317,2]
[357707264,1744361433711,-151.0,0.00021317,2]
[357707265,1744361433722,-151.0,0.00021317,2]
[357707266,1744361433732,-151.0,0.00021317,2]
[357707267,1744361433741,-151.0,0.00021317,2]
[357707268,1744361433751,-151.0,0.00021317,2]
[357707269,1744361433760,-151.0,0.00021317,2]
[357707270,1744361433770,-151.0,0.00021317,2]
[357707271,1744361433780,-151.0,0.00021317,2]
[357707272,1744361433790,-152.063122,0.00021317,2]
[357707273,1744361433799,-151.0,0.00021317,2]
[357707274,1744361433809,-124.97591058,0.00021317,2]
[357707275,1744361438942,-242.43,0.0002,2]
[357707276,1744361438952,-103.15148442,0.00021317,2]
[357707277,1744361439050,-151.0,0.00021317,2]
[357707278,1744361439068,-151.0,0.00021317,2]
[357707279,1744361439078,-151.0,0.00021317,2]
[357707281,1744361439087,-151.0,0.00021317,2]
[357707283,1744361439097,-151.0,0.00021317,2]
[357707285,1744361439107,-151.0,0.00021317,2]
[357707287,1744361439117,-151.0,0.00021317,2]
[357707289,1744361439127,-151.0,0.00021317,2]
[357707290,1744361439136,-151.0,0.00021317,2]
[357707291,1744361439147,-151.0,0.00021317,2]
[357707292,1744361439157,-155.761027,0.00021317,2]
[357707293,1744361439166,-151.0,0.00021317,2]
[357707294,1744361439176,-151.0,0.00021317,2]
[357707295,1744361439185,-155.17193,0.00021317,2]
[357707296,1744361439194,-427.932184,0.00021317,2]
[357707297,1744361439204,-427.932184,0.00021317,2]
[357707298,1744361439213,-427.932184,0.00021317,2]
[357707299,1744361439223,-427.932184,0.00021317,2]
[357707300,1744361439232,-427.932184,0.00021317,2]
[357707301,1744361439242,-427.932184,0.00021317,2]
[357707302,1744361439251,-427.932184,0.00021317,2]
[357707303,1744361439260,-427.932184,0.00021317,2]
[357707304,1744361439269,-427.932184,0.00021317,2]
[357707305,1744361439278,-427.932184,0.00021317,2]
[357707306,1744361439288,-427.932184,0.00021317,2]
[357707307,1744361439298,-427.932184,0.00021317,2]
[357707308,1744361439307,-151.0,0.00021317,2]
[357707309,1744361439316,-151.0,0.00021317,2]
[357707310,1744361439326,-151.0,0.00021317,2]
[357707311,1744361439336,-151.0,0.00021317,2]
[357707312,1744361439345,-151.0,0.00021317,2]
[357707313,1744361439355,-151.0,0.00021317,2]
[357707314,1744361439364,-151.0,0.00021317,2]
[357707315,1744361439374,-151.0,0.00021317,2]
[357707316,1744361439383,-152.07867,0.00021317,2]
[357707317,1744361439393,-151.0,0.00021317,2]
[357707318,1744361439402,-158.238088,0.00021317,2]
[357707319,1744361439412,-2372.598302,0.00021317,2]
[357707320,1744361439421,-2372.598302,0.00021317,2]
[357707321,1744361439430,-904.374121,0.00021317,2]
[357707322,1744361439439,-904.374121,0.00021317,2]
[357707323,1744361439449,-904.374121,0.00021317,2]
[357707324,1744361439458,-904.374121,0.00021317,2]
[357707325,1744361439467,-904.374121,0.00021317,2]
[357707326,1744361439477,-904.374121,0.00021317,2]
[357707327,1744361439486,-904.374121,0.00021317,2]
[357707328,1744361439495,-904.374121,0.00021317,2]
[357707329,1744361439505,-335.9916871,0.00021317,2]
[357707362,1744361443769,-464.3418799,0.00021317,2]
[357707387,1744361446745,-104.040554,0.00021317,2]
[357707388,1744361446755,-278.708074,0.00021317,2]
[357707418,1744362635532,-1000.0,0.00019171,2]
[357707419,1744362635543,-300.0,0.00019216,2]
[357707420,1744362635553,-11754.85731077,0.00019217,2]
[357707421,1744362635562,-1126.17792292,0.000199,2]
[357707422,1744362635571,-160.0,0.0002,3]
[357707423,1744362635580,-428.705296,0.00020116,2]
[357707424,1744362635590,-218.18,0.000202,2]
[357707425,1744362635600,-193.781206,0.0002026,2]
[357707426,1744362635609,-152.0,0.00020914,2]
[357707427,1744362635619,-420.0,0.00020941,2]
[357707428,1744362635629,-3000.0,0.00021,2]
[357707429,1744362635638,-3184.655438,0.0002101,2]
[357707430,1744362635651,-156.67,0.0002101,2]
[357707431,1744362635661,-151.0,0.00021109,2]
[357707432,1744362635671,-527.0759526,0.00021216,2]
[357707433,1744362635680,-250.0,0.00021217,2]
[357707434,1744362635690,-322.89306706,0.00021273,2]
[357707435,1744362635700,-151.0,0.0002129,2]
[357707436,1744362635709,-1000.0,0.00021299,2]
[357707437,1744362635719,-151.0,0.00021304,2]
[357707438,1744362635728,-151.0,0.00021304,2]
[357707439,1744362635737,-207.4,0.00021304,2]
[357707440,1744362635747,-267.90461929,0.00021316,2]
[357707441,1744362635756,-246.13707109,0.00021316,2]
[357707442,1744362635766,-1000.0,0.00021316,2]
[357707443,1744362635776,-1000.0,0.00021316,2]
[357707444,1744362635785,-500.0,0.00021317,2]
[357707445,1744362635797,-1012.683784,0.00021317,2]
[357707446,1744362635807,-1012.683784,0.00021317,2]
[357707447,1744362635817,-447.77006247,0.00021317,2]
[357707448,1744362635830,-564.91372153,0.00021317,2]
[357707449,1744362635840,-1012.683784,0.00021317,2]
[357707450,1744362635850,-1012.683784,0.00021317,2]
[357707451,1744362635860,-1012.683784,0.00021317,2]
[357707452,1744362635870,-1012.683784,0.00021317,2]
[357707453,1744362635879,-760.69884963,0.00021317,2]
[357707454,1744362635892,-251.98493437,0.00021317,2]
[357707455,1744362635902,-294.52069376,0.00021317,2]
[357707467,1744362637920,-480.51426054,0.00021317,2]
[357707468,1744362637950,-237.6488297,0.00021317,2]
[357707469,1744362637960,-1012.683784,0.00021317,2]
[357707470,1744362637970,-1012.683784,0.00021317,2]
[357707471,1744362637980,-1012.683784,0.00021317,2]
[357707472,1744362637990,-151.0,0.00021317,2]
[357707473,1744362638000,-151.0,0.00021317,2]
[357707474,1744362638009,-151.472398,0.00021317,2]
[357707475,1744362638019,-151.0,0.00021317,2]
[357707476,1744362638029,-151.0,0.00021317,2]
[357707477,1744362638038,-152.84971,0.00021317,2]
[357707478,1744362638048,-151.0,0.00021317,2]
[357707479,1744362638057,-151.0,0.00021317,2]
[357707480,1744362638067,-151.0,0.00021317,2]
[357707481,1744362638077,-151.0,0.00021317,2]
[357707482,1744362638087,-151.0,0.00021317,2]
[357707484,1744362638096,-151.0,0.00021317,2]
[357707486,1744362638105,-151.0,0.00021317,2]
[357707488,1744362638114,-151.0,0.00021317,2]
[357707490,1744362638124,-151.0,0.00021317,2]
[357707492,1744362638133,-151.0,0.00021317,2]
[357707493,1744362638142,-151.0,0.00021317,2]
[357707495,1744362638152,-151.0,0.00021317,2]
[357707496,1744362638162,-151.0,0.00021317,2]
[357707497,1744362638171,-151.0,0.00021317,2]
[357707498,1744362638181,-151.0,0.00021317,2]
[357707499,1744362638190,-151.0,0.00021317,2]
[357707500,1744362638199,-151.0,0.00021317,2]
[357707501,1744362638210,-166.415576,0.00021317,2]
[357707502,1744362638220,-171.172874,0.00021317,2]
[357707503,1744362638229,-171.172874,0.00021317,2]
[357707504,1744362638238,-171.172874,0.00021317,2]
[357707505,1744362638248,-151.0,0.00021317,2]
[357707506,1744362638258,-151.0,0.00021317,2]
[357707507,1744362638269,-151.0,0.00021317,2]
[357707508,1744362638281,-483.470363,0.00021317,2]
[357707509,1744362638292,-483.470363,0.00021317,2]
[357707510,1744362638304,-483.470363,0.00021317,2]
[357707511,1744362638315,-483.470363,0.00021317,2]
[357707512,1744362638325,-151.0,0.00021317,2]
[357707513,1744362638335,-151.0,0.00021317,2]
[357707514,1744362638347,-151.0,0.00021317,2]
[357707515,1744362638357,-151.0,0.00021317,2]
[357707516,1744362638368,-151.0,0.00021317,2]
[357707517,1744362638379,-156.807997,0.00021317,2]
[357707518,1744362638393,-156.807997,0.00021317,2]
[357707519,1744362638405,-151.0,0.00021317,2]
[357707520,1744362638414,-203.61031,0.00021317,2]
[357707521,1744362638424,-203.61031,0.00021317,2]
[357707522,1744362638433,-203.61031,0.00021317,2]
[357707523,1744362638443,-203.61031,0.00021317,2]
[357707524,1744362638452,-151.0,0.00021317,2]
[357707525,1744362638463,-151.0,0.00021317,2]
[357707526,1744362638472,-2135.338472,0.00021317,2]
[357707527,1744362638483,-2135.338472,0.00021317,2]
[357707528,1744362638492,-2135.338472,0.00021317,2]
[357707529,1744362638502,-2135.338472,0.00021317,2]
[357707530,1744362638511,-199.85692,0.00021317,2]
[357707531,1744362638522,-199.85692,0.00021317,2]
[357707532,1744362638532,-199.85692,0.00021317,2]
[357707533,1744362638541,-199.85692,0.00021317,2]
[357707534,1744362638551,-151.0,0.00021319,2]
[357707535,1744362638561,-203.61031,0.00021319,2]
[357707536,1744362638669,-203.61031,0.00021319,2]
[357707537,1744362638682,-151.0,0.00021319,2]
[357707538,1744362638692,-2135.338472,0.00021319,2]
[357707539,1744362638703,-2135.338472,0.00021319,2]
[357707540,1744362638713,-199.85692,0.00021319,2]
[357707541,1744362638723,-199.85692,0.00021319,2]
[357707542,1744362638733,-151.0,0.0002132,2]
[357707543,1744362638742,-151.0,0.0002132,2]
[357707544,1744362638752,-1012.683784,0.0002132,2]
[357707545,1744362638762,-1012.683784,0.0002132,2]
[357707546,1744362638772,-151.0,0.0002132,2]
[357707547,1744362638782,-151.0,0.0002132,2]
[357707548,1744362638792,-1069.760468,0.0002132,2]
[357707549,1744362638801,-151.0,0.0002132,2]
[357707550,1744362638811,-151.0,0.0002132,2]
[357707551,1744362638821,-151.0,0.0002132,2]
[357707553,1744362638831,-151.0,0.0002132,2]
[357707554,1744362638841,-151.0,0.0002132,2]
[357707555,1744362638850,-171.172874,0.0002132,2]
[357707556,1744362638860,-151.0,0.0002132,2]
[357707557,1744362638869,-483.470363,0.0002132,2]
[357707558,1744362638879,-483.470363,0.0002132,2]
[357707559,1744362638889,-151.0,0.0002132,2]
[357707560,1744362638899,-151.0,0.0002132,2]
[357707561,1744362638909,-156.807997,0.0002132,2]
[357707562,1744362638918,-156.807997,0.0002132,2]
[357707563,1744362638927,-1058.6,0.0002132,3]
[357707564,1744362638937,-529.3,0.0002132,3]
[357707565,1744362638947,-203.61031,0.0002132,2]
[357707566,1744362638956,-203.61031,0.0002132,2]
[357707567,1744362638965,-264.65,0.0002132,3]
[357707568,1744362638975,-151.0,0.0002132,2]
[357707569,1744362638985,-793.98,0.0002132,3]
[357707570,1744362638995,-2135.338472,0.0002132,2]
[357707571,1744362639005,-2135.338472,0.0002132,2]
[357707572,1744362639014,-199.85692,0.0002132,2]
[357707573,1744362639023,-199.85692,0.0002132,2]
[357707574,1744362639034,-1000.0,0.00021329,2]
[357707575,1744362639044,-151.0,0.0002133,2]
[357707576,1744362639053,-151.0,0.0002133,2]
[357707577,1744362639063,-1012.683784,0.0002133,2]
[357707578,1744362639072,-1012.683784,0.0002133,2]
[357707579,1744362639082,-296.440516,0.0002133,2]
[357707580,1744362639092,-151.0,0.0002133,2]
[357707581,1744362639101,-151.0,0.0002133,2]
[357707582,1744362639111,-1069.760468,0.0002133,2]
[357707583,1744362639120,-1069.760468,0.0002133,2]
[357707584,1744362639129,-151.0,0.0002133,2]
[357707585,1744362639139,-151.0,0.0002133,2]
[357707587,1744362639148,-298.532048,0.0002133,2]
[357707588,1744362639158,-151.0,0.0002133,2]
[357707589,1744362639169,-151.0,0.0002133,2]
[357707590,1744362639179,-151.0,0.0002133,2]
[357707591,1744362639188,-151.0,0.0002133,2]
[357707592,1744362639198,-297.0,0.0002133,2]
[357707593,1744362639208,-151.0,0.0002133,2]
[357707594,1744362639217,-151.0,0.0002133,2]
[357707595,1744362639227,-151.0,0.0002133,2]
[357707596,1744362639236,-171.172874,0.0002133,2]
[357707597,1744362639250,-171.172874,0.0002133,2]
[357707598,1744362639269,-151.0,0.0002133,2]
[357707599,1744362639285,-213.567389,0.0002133,2]
[357707600,1744362639305,-483.470363,0.0002133,2]
[357707601,1744362639326,-483.470363,0.0002133,2]
[357707602,1744362639343,-151.0,0.0002133,2]
[357707603,1744362639362,-151.0,0.0002133,2]
[357707604,1744362639378,-173.71071,0.0002133,2]
[357707605,1744362639393,-156.807997,0.0002133,2]
[357707606,1744362639412,-156.807997,0.0002133,2]
[357707607,1744362639432,-203.61031,0.0002133,2]
[357707608,1744362639449,-203.61031,0.0002133,2]
[357707609,1744362639462,-203.61031,0.0002133,2]
[357707612,1744362639480,-203.61031,0.0002133,2]
[357707613,1744362639495,-151.0,0.0002133,2]
[357707614,1744362639511,-151.0,0.0002133,2]
[357707615,1744362639527,-2135.338472,0.0002133,2]
[357707616,1744362639545,-2135.338472,0.0002133,2]
[357707617,1744362639568,-2135.338472,0.0002133,2]
[357707618,1744362639586,-2135.338472,0.0002133,2]
[357707619,1744362639605,-199.85692,0.0002133,2]
[357707620,1744362639621,-199.85692,0.0002133,2]
[357707621,1744362639639,-199.85692,0.0002133,2]
[357707622,1744362639654,-199.85692,0.0002133,2]
[357707623,1744362639668,-1126.17792277,0.00021348,3]
[357707624,1744362639683,-156.587,0.00021359,2]
[357707625,1744362639698,-483.470363,0.00021372,2]
[357707626,1744362639713,-483.470363,0.00021372,2]
[357707627,1744362639726,-160.89418277,0.00021372,2]
[357707628,1744362639741,-160.71131053,0.00021372,2]
[357707629,1744362639755,-156.807997,0.00021372,2]
[357707630,1744362639769,-156.807997,0.00021372,2]
[357707631,1744362639784,-1000.0,0.00021372,2]
[357707632,1744362639798,-1464.24241893,0.00021372,2]
[357707633,1744362639812,-762.003449,0.00021372,3]
[357707634,1744362639826,-500.0,0.00021373,2]
[357707635,1744362639841,-500.0,0.00021373,2]
[357707636,1744362639856,-500.0,0.00021373,2]
[357707637,1744362639870,-500.0,0.00021373,2]
[357707638,1744362639885,-465.82667726,0.00021373,2]
[357707639,1744362639899,-500.0,0.00021373,2]
[357707640,1744362639913,-500.65382494,0.00021373,2]
[357707641,1744362639928,-434.419837,0.00021373,2]
[357707642,1744362639942,-500.0,0.00021373,2]
[357707643,1744362639957,-500.0,0.00021373,2]
[357707644,1744362639972,-500.0,0.00021373,2]
[357707645,1744362639987,-500.0,0.00021373,2]
[357707646,1744362640001,-500.0,0.00021373,2]
[357707647,1744362640015,-500.0,0.00021373,2]
[357707648,1744362640030,-500.0,0.00021373,2]
[357707649,1744362640045,-500.0,0.00021373,2]
[357707650,1744362640059,-500.0,0.00021373,2]
[357707651,1744362640074,-500.83149096,0.00021373,2]
[357707652,1744362640090,-500.0,0.00021373,2]
[357707653,1744362640108,-81.15452035,0.00021373,2]
[357707654,1744362640137,-286.97427163,0.00021373,2]
[357707655,1744362640170,-131.87120802,0.00021373,2]
[357707656,1744362640185,-184.49979546,0.00021373,2]
[357707666,1744362640326,-317.24453915,0.00021373,2]
[357707668,1744362640342,-457.63447209,0.00021373,2]
[357707670,1744362640351,-500.0,0.00021373,2]
[357707672,1744362640361,-500.0,0.00021373,2]
[357707674,1744362640370,-500.0,0.00021373,2]
[357707676,1744362640380,-499.82,0.00021373,2]
[357707677,1744362640390,-500.0,0.00021373,2]
[357707680,1744362640400,-500.0,0.00021373,2]
[357707681,1744362640410,-500.0,0.00021373,2]
[357707683,1744362640419,-500.0,0.00021373,2]
[357707685,1744362640428,-500.0,0.00021373,2]
[357707687,1744362640438,-224.10404573,0.00021373,2]
[357707688,1744362640447,-500.0,0.00021373,2]
[357707690,1744362640456,-500.0,0.00021373,2]
[357707691,1744362640466,-151.0,0.00021373,2]
[357707692,1744362640475,-151.0,0.00021373,2]
[357707693,1744362640484,-157.799996,0.00021373,2]
[357707694,1744362640494,-208.355885,0.00021373,2]
[357707695,1744362640504,-1012.683784,0.00021373,2]
[357707696,1744362640514,-1012.683784,0.00021373,2]
[357707697,1744362640523,-1012.683784,0.00021373,2]
[357707698,1744362640534,-1012.683789,0.00021373,2]
[357707699,1744362640544,-151.0,0.00021373,2]
[357707700,1744362640554,-151.0,0.00021373,2]
[357707701,1744362640564,-151.0,0.00021373,2]
[357707702,1744362640574,-1069.760468,0.00021373,2]
[357707703,1744362640584,-1069.760468,0.00021373,2]
[357707704,1744362640594,-1069.760468,0.00021373,2]
[357707705,1744362640603,-153.282001,0.00021373,2]
[357707706,1744362640614,-151.0,0.00021373,2]
[357707707,1744362640624,-151.0,0.00021373,2]
[357707708,1744362640634,-151.0,0.00021373,2]
[357707709,1744362640644,-171.172874,0.00021373,2]
[357707710,1744362640654,-171.172874,0.00021373,2]
[357707711,1744362640663,-171.172874,0.00021373,2]
[357707712,1744362640673,-171.17286766,0.00021373,2]
[357707713,1744362640683,-483.470363,0.00021373,2]
[357707714,1744362640693,-483.470363,0.00021373,2]
[357707715,1744362640703,-483.470363,0.00021373,2]
[357707716,1744362640717,-483.470363,0.00021373,2]
[357707717,1744362640727,-483.470363,0.00021373,2]
[357707718,1744362640737,-483.470363,0.00021373,2]
[357707719,1744362640746,-483.470363,0.00021373,2]
[357707720,1744362640755,-483.470363,0.00021373,2]
[357707721,1744362640765,-151.0,0.00021373,2]
[357707722,1744362640775,-1000.0,0.00021373,14]
[357707723,1744362640785,-1000.0,0.00021373,14]
[357707724,1744362640794,-1000.0,0.00021373,14]
[357707725,1744362640803,-1000.0,0.00021373,14]
[357707726,1744362640813,-1000.0,0.00021373,14]
[357707727,1744362640823,-1000.0,0.00021373,14]
[357707728,1744362640833,-1000.0,0.00021373,14]
[357707729,1744362640842,-1000.0,0.00021373,14]
[357707730,1744362640852,-1000.0,0.00021373,14]
[357707731,1744362640862,-1000.0,0.00021373,14]
[357707732,1744362640871,-156.807997,0.00021373,2]
[357707733,1744362640881,-156.807997,0.00021373,2]
[357707734,1744362640890,-156.807997,0.00021373,2]
[357707735,1744362640900,-156.807997,0.00021373,2]
[357707736,1744362640909,-156.807997,0.00021373,2]
[357707737,1744362640919,-156.807997,0.00021373,2]
[357707738,1744362640928,-156.807997,0.00021373,2]
[357707739,1744362640938,-156.807997,0.00021373,2]
[357707740,1744362640948,-203.61031,0.00021373,2]
[357707741,1744362640958,-203.61031,0.00021373,2]
[357707742,1744362640968,-203.61031,0.00021373,2]
[357707743,1744362640977,-203.61031,0.00021373,2]
[357707744,1744362640987,-203.61031,0.00021373,2]
[357707745,1744362640996,-203.61031,0.00021373,2]
[357707746,1744362641006,-203.61031,0.00021373,2]
[357707747,1744362641016,-203.610307,0.00021373,2]
[357707748,1744362641026,-151.0,0.00021373,2]
[357707749,1744362641036,-2135.338472,0.00021373,2]
[357707750,1744362641045,-94.93290739,0.00021373,2]
[357707800,1744362646034,-297.0,0.00021373,2]
[357707805,1744362967726,1078.28297549,5e-05,2]
[357707866,1744363748969,5000.0,0.00017,6]
[357707940,1744363831972,-200.91575129,0.0001728,2]
[357707942,1744363831982,-976.07907818,0.000175,4]
[357707944,1744363831993,-869.48887298,0.000175,4]
[357707946,1744363832004,-846.5852697,0.000175,4]
[357707948,1744363832015,-420.49297841,0.000175,4]
[357707951,1744363832024,-37.39445479,0.00018899,2]
[357707965,1744363838266,-262.60554521,0.00018899,2]
[357707966,1744363838275,-7836.57154051,0.000189,2]
[357707967,1744363838285,-5000.0,0.00019,2]
[357707968,1744363838294,-259.9352681,0.00019177,4]
[357707984,1744363840376,-282.76718137,0.00019177,4]
[357707985,1744363840386,-500.14616385,0.00019726,2]
[357707986,1744363840395,-1051.09939474,0.000199,2]
[357707987,1744363840404,-368.95316682,0.00019999,2]
[357707988,1744363840414,-1219.93767395,0.0002,7]
[357707989,1744363840432,-1613.22329112,0.0002,7]
[357707990,1744363840443,-2166.83903493,0.0002,7]
[357707991,1744363840453,-1088.5058611,0.0002013,2]
[357707992,1744363840464,-2063.5724155,0.0002013,2]
[357707993,1744363840474,-1090.01404465,0.00020171,2]
[357707994,1744363840484,-196.36,0.000202,2]
[357707997,1744363840493,-420.0,0.00020602,2]
[357707999,1744363840503,-5000.0,0.00021,2]
[357708001,1744363840512,-1000.0,0.00021009,2]
[357708002,1744363840522,-151.0,0.00021146,2]
[357708003,1744363840531,-207.4,0.00021146,2]
[357708004,1744363840540,-313.77092791,0.00021158,2]
[357708032,1744363843067,-12622.17482992,0.00021158,2]
[357708033,1744363843078,-1751.34530011,0.00021158,2]
[357708034,1744363843087,-156.67,0.00021158,2]
[357708035,1744363843097,-2278.78356886,0.00021259,2]
[357708036,1744363843123,-1503.0,0.00021259,2]
[357708037,1744363843134,-1638.95364568,0.00021259,2]
[357708038,1744363843144,-250.0,0.00021272,2]
[357708039,1744363843153,-151.0,0.00021287,2]
[357708040,1744363843162,-1796.99635432,0.000213,4]
[357708041,1744363843178,-3203.00364568,0.000213,4]
[357708042,1744363843187,-1000.0,0.000213,2]
[357708044,1744363843197,-1051.09939458,0.00021314,3]
[357708045,1744363843206,-1000.0,0.00021316,2]
[357708046,1744363843216,-1000.0,0.00021316,2]
[357708047,1744363843225,-313.39447329,0.00021319,2]
[357708048,1744363843248,-616.75923711,0.00021319,2]
[357708049,1744363843260,-69.8462896,0.00021319,2]
[357708050,1744363843269,-1000.0,0.00021329,2]
[357708051,1744363843278,-156.587,0.00021342,2]
[357708052,1744363843287,-151.0,0.00021348,2]
[357708053,1744363843297,-151.0,0.00021372,2]
[357708054,1744363843306,-151.0,0.00021372,2]
[357708056,1744363843315,-1000.0,0.00021372,2]
[357708057,1744363843324,-1000.0,0.00021372,2]
[357708058,1744363843333,-1000.0,0.00021372,2]
[357708059,1744363843343,-500.0,0.00021373,2]
[357708060,1744363843352,-151.78541144,0.00021373,2]
[357708061,1744363843361,-78.6709544,0.00021373,2]
[357708062,1744363843373,-421.3290456,0.00021373,2]
[357708063,1744363843382,-331.63074746,0.00021373,2]
[357708064,1744363843393,-168.36925254,0.00021373,2]
[357708065,1744363843403,-500.0,0.00021373,2]
[357708066,1744363843413,-626.91823823,0.00021373,2]
[357708067,1744363843424,-21.28970869,0.00021373,2]
[357708068,1744363843434,-311.86719046,0.00021373,2]
[357708075,1744363846311,-188.13280954,0.00021373,2]
[357708076,1744363846321,-500.67954727,0.00021373,2]
[357708077,1744363846331,-597.72496318,0.00021373,2]
[357708078,1744363846340,-500.0,0.00021373,2]
[357708079,1744363846351,-500.0,0.00021373,2]
[357708080,1744363846360,-500.0,0.00021373,2]
[357708081,1744363846370,-435.23622029,0.00021373,2]
[357708082,1744363846382,-64.76377971,0.00021373,2]
[357708083,1744363846391,-425.89819056,0.00021373,2]
[357708084,1744363846429,-74.10180944,0.00021373,2]
[357708086,1744363846438,-500.0,0.00021373,2]
[357708087,1744363846447,-500.0,0.00021373,2]